bitfinex/quotes_BTCUSD_20220111
["timestamp","ask_amount","ask_price","bid_price","bid_amount"]
[1641897187842,0.32441816,41772.0,41767.0,0.10588074]
[1641897188645,0.32441816,41772.0,41766.0,0.75475547]
[1641897189244,0.32945594,41773.0,41766.0,0.87760447]
[1641897189444,0.32945594,41773.0,41766.0,0.81775547]
[1641897189646,0.32945594,41773.0,41766.0,0.25940168]
[1641897190252,0.00085706,41774.0,41769.0,0.04787832]
[1641897190448,0.00085706,41774.0,41766.0,0.25940168]
[1641897190711,0.24456152,41773.0,41766.0,0.19640168]
[1641897190911,0.0008571,41774.0,41768.0,0.059848]
[1641897191314,0.0008571,41774.0,41768.0,0.10772636]
[1641897191914,0.0478,41775.0,41768.0,0.10772636]
[1641897192114,0.00085709,41774.0,41768.0,0.10772636]
[1641897192715,0.00085709,41774.0,41766.0,0.10064872]
[1641897192920,0.58844055,41776.0,41767.0,0.05]
[1641897193116,0.375383,41775.0,41767.0,0.05]
[1641897193319,0.00085709,41774.0,41767.0,0.05]
[1641897193517,0.00085709,41774.0,41766.0,0.16134037]
[1641897193719,0.34240273,41774.0,41768.0,0.10248348]
[1641897194120,0.34154564,41774.0,41767.0,0.44923058]
[1641897194346,0.34240273,41774.0,41767.0,0.44923058]
[1641897194541,0.44240273,41774.0,41763.0,0.071905]
[1641897194841,0.34240273,41774.0,41763.0,0.11047883]
[1641897195240,0.34240273,41774.0,41767.0,0.09575307]
[1641897195445,0.34154564,41774.0,41767.0,0.09575307]
[1641897195642,0.3424027,41774.0,41767.0,0.09575307]
[1641897196041,0.4424027,41774.0,41768.0,0.05]
[1641897196542,0.375383,41773.0,41768.0,0.05]
[1641897196742,0.62268033,41769.0,41767.0,0.09575307]
[1641897196941,0.62268033,41769.0,41766.0,0.04788183]
[1641897197342,0.62268033,41769.0,41767.0,0.068]
[1641897198593,0.423183,41768.0,41763.0,0.01205402]
[1641897198993,0.375383,41767.0,41763.0,0.01166934]
[1641897199193,0.00126489,41764.0,41763.0,0.01205403]
[1641897199392,0.95318885,41764.0,41763.0,0.01205403]
[1641897199595,1.05318885,41764.0,41763.0,0.01205403]
[1641897199792,0.55318885,41764.0,41763.0,0.01205403]
[1641897200195,0.55318885,41764.0,41763.0,0.01166934]
[1641897201395,0.57018885,41764.0,41763.0,0.01166934]
[1641897202643,0.55318885,41764.0,41763.0,0.01166934]
[1641897203443,0.56918885,41764.0,41763.0,0.01166934]
[1641897204645,0.55318885,41764.0,41763.0,0.01166934]
[1641897205446,0.58118885,41764.0,41763.0,0.01166934]
[1641897206592,0.55318885,41764.0,41763.0,0.01166934]
[1641897207392,0.55818885,41764.0,41763.0,0.01166934]
[1641897209092,0.55318885,41764.0,41763.0,0.01166934]
[1641897209346,0.55818885,41764.0,41763.0,0.01166934]
[1641897210542,0.55318885,41764.0,41763.0,0.01166934]
[1641897210944,0.55192396,41764.0,41763.0,0.01166934]
[1641897211142,0.094236,41764.0,41763.0,0.01166934]
[1641897211347,0.006,41764.0,41763.0,0.36166934]
[1641897211541,0.006,41764.0,41763.0,0.07152034]
[1641897211741,0.006,41764.0,41763.0,0.06166934]
[1641897211941,0.006,41764.0,41763.0,0.01166934]
[1641897212442,0.006,41764.0,41763.0,0.38705234]
[1641897212842,0.006,41764.0,41763.0,0.43705234]
[1641897213297,0.00202285,41774.0,41763.0,0.43705234]
[1641897213499,0.375383,41773.0,41763.0,0.06166934]
[1641897213694,0.34144526,41772.0,41763.0,0.01166934]
[1641897213895,0.094236,41771.0,41763.0,0.01166934]
[1641897214295,0.26825013,41769.0,41763.0,0.01166934]
[1641897214596,0.68436464,41764.0,41763.0,0.01166934]
[1641897214795,0.77860064,41764.0,41763.0,0.01197863]
[1641897215197,0.094236,41764.0,41763.0,0.01197863]
[1641897215396,0.3027,41771.0,41763.0,0.01197863]
[1641897215596,0.1,41768.0,41763.0,0.01197863]
[1641897215796,0.09545523,41767.0,41763.0,0.01166934]
[1641897216003,0.43609555,41766.0,41763.0,0.01197863]
[1641897216197,0.375383,41765.0,41763.0,0.01197863]
[1641897216396,0.64104791,41764.0,41763.0,0.01197863]
[1641897216600,0.73528391,41764.0,41763.0,0.01197863]
[1641897216846,0.83528391,41764.0,41763.0,0.01197863]
[1641897217042,0.83528391,41764.0,41763.0,0.01166934]
[1641897217341,0.75028391,41764.0,41763.0,0.01166934]
[1641897217540,0.85028391,41764.0,41763.0,0.01166934]
[1641897218141,0.75028391,41764.0,41763.0,0.01166934]
[1641897218544,0.73528391,41764.0,41763.0,0.01166934]
[1641897219141,0.83528391,41764.0,41763.0,0.01166934]
[1641897219341,0.75728391,41764.0,41763.0,0.01166934]
[1641897219844,0.80508391,41764.0,41763.0,0.01166934]
[1641897220047,0.90508391,41764.0,41763.0,0.01166934]
[1641897220444,0.80508391,41764.0,41763.0,0.01166934]
[1641897220689,0.88308391,41764.0,41763.0,0.01166934]
[1641897221492,0.90308391,41764.0,41763.0,0.01166934]
[1641897222295,0.80308391,41764.0,41763.0,0.01166934]
[1641897222693,0.78308391,41764.0,41763.0,0.01166934]
[1641897223495,0.80308391,41764.0,41763.0,0.01166934]
[1641897224195,0.375383,41763.0,41742.0,2.9596]
[1641897224444,0.70884791,41764.0,41761.0,0.00030962]
[1641897224644,0.375383,41763.0,41761.0,0.00030962]
[1641897224844,0.423183,41763.0,41761.0,0.00030962]
[1641897225544,0.423183,41763.0,41760.0,0.04789256]
[1641897225545,0.428183,41763.0,41760.0,0.04789256]
[1641897225745,0.428183,41763.0,41756.0,0.09578433]
[1641897225944,0.0528,41763.0,41756.0,0.14578433]
[1641897226355,0.25545116,41762.0,41756.0,0.14578433]
[1641897226646,0.36447411,41760.0,41756.0,0.14578433]
[1641897228091,0.36533131,41760.0,41756.0,0.14578433]
[1641897228492,0.36533131,41760.0,41757.0,0.04789152]
[1641897228693,0.0008572,41760.0,41757.0,0.04789152]
[1641897229095,0.0478,41763.0,41757.0,0.04789152]
[1641897229294,0.0008572,41761.0,41757.0,0.04789152]
[1641897229896,0.0008572,41761.0,41756.0,0.09578433]
[1641897230296,0.39349199,41762.0,41756.0,0.09578433]
[1641897230595,0.0008572,41761.0,41756.0,0.09578433]
[1641897230996,0.0008572,41761.0,41756.0,0.14578433]
[1641897231401,0.39349199,41762.0,41756.0,0.14578433]
[1641897231596,0.0008572,41761.0,41756.0,0.14578433]
[1641897232645,0.0478,41763.0,41756.0,0.14578433]
[1641897232845,0.0008572,41761.0,41756.0,0.14578433]
[1641897233049,0.0008572,41761.0,41759.0,0.1]
[1641897233246,0.0008572,41761.0,41760.0,1.27661078]
[1641897233647,0.0008572,41761.0,41760.0,1.53935447]
[1641897233846,0.05568635,41770.0,41760.0,1.53935447]
[1641897234051,0.00085718,41763.0,41761.0,0.1052553]
[1641897234247,0.00085718,41763.0,41762.0,1.59098209]
[1641897234546,0.00085718,41763.0,41762.0,1.74219351]
[1641897234947,0.43985206,41774.0,41762.0,1.64219351]
[1641897235147,0.26108734,41772.0,41763.0,0.52376653]
[1641897235348,0.00085717,41765.0,41764.0,1.025383]
[1641897235593,0.00085717,41765.0,41764.0,1.45274535]
[1641897235994,0.00085717,41765.0,41764.0,0.80274535]
[1641897236194,0.26108734,41772.0,41764.0,0.80274535]
[1641897236396,0.26108734,41772.0,41768.0,0.04189264]
[1641897236798,0.26108734,41772.0,41768.0,0.09189264]
[1641897237398,0.26108734,41772.0,41768.0,0.16989264]
[1641897237596,0.26194446,41772.0,41768.0,0.16989264]
[1641897237797,0.54511704,41772.0,41768.0,0.16989264]
[1641897238298,0.375383,41771.0,41768.0,0.16989264]
[1641897238699,0.375383,41771.0,41768.0,0.09189264]
[1641897238901,0.375383,41771.0,41768.0,0.05]
[1641897239104,0.375383,41771.0,41764.0,0.13379251]
[1641897239544,0.375383,41770.0,41768.0,0.066]
[1641897239944,0.475383,41770.0,41768.0,0.066]
[1641897240144,0.47624014,41770.0,41768.0,0.066]
[1641897240344,0.37624014,41770.0,41768.0,0.066]
[1641897240745,0.37624014,41770.0,41764.0,0.08379251]
[1641897240945,0.43603748,41766.0,41764.0,0.13379251]
[1641897241448,0.43603748,41766.0,41764.0,0.19779251]
[1641897241756,0.53603748,41766.0,41764.0,0.064]
[1641897241950,1.98962136,41765.0,41764.0,0.064]
[1641897242146,0.78962136,41765.0,41764.0,0.064]
[1641897242747,0.38458727,41764.0,41753.0,0.00037448]
[1641897242948,0.0478,41763.0,41753.0,0.00037448]
[1641897243199,0.0478,41762.0,41753.0,0.00037448]
[1641897243399,0.0478,41761.0,41754.0,0.059864]
[1641897243599,0.0486572,41760.0,41755.0,0.04190987]
[1641897243798,0.0478,41759.0,41755.0,0.04190987]
[1641897244000,0.0478,41759.0,41755.0,0.09190987]
[1641897244198,0.0008572,41760.0,41758.0,0.33694871]
[1641897244600,0.0478,41764.0,41758.0,0.05]
[1641897244799,0.00085719,41761.0,41757.0,0.08380548]
[1641897245000,0.00085719,41761.0,41758.0,0.05]
[1641897245802,0.0478,41764.0,41759.0,0.04190177]
[1641897246000,0.00085719,41762.0,41759.0,0.04190177]
[1641897246601,0.00085719,41762.0,41758.0,0.05]
[1641897247050,0.40940506,41759.0,41758.0,0.05]
[1641897247446,0.00085719,41762.0,41758.0,0.132]
[1641897248248,0.0478,41764.0,41758.0,0.132]
[1641897248448,0.40449668,41762.0,41760.0,0.04190668]
[1641897249450,0.36841333,41764.0,41760.0,0.10090668]
[1641897249655,0.00085718,41763.0,41762.0,0.08380149]
[1641897249852,0.00085718,41763.0,41762.0,0.50124739]
[1641897250053,0.00085718,41763.0,41762.0,0.50918449]
[1641897250694,0.60606883,41771.0,41762.0,0.88102213]
[1641897250695,0.24414123,41768.0,41762.0,0.88102213]
[1641897250895,0.2439984,41768.0,41764.0,0.04189752]
[1641897251496,0.375383,41767.0,41764.0,0.04989752]
[1641897252695,0.375383,41767.0,41764.0,0.04189752]
[1641897253497,0.395383,41767.0,41764.0,0.05289752]
[1641897253898,0.395383,41767.0,41764.0,0.011]
[1641897254097,0.42220606,41766.0,41764.0,0.011]
[1641897254349,0.142036,41765.0,41764.0,0.011]
[1641897254745,0.142036,41765.0,41763.0,0.04190112]
[1641897255346,0.0478,41765.0,41763.0,0.04190112]
[1641897255547,0.0478,41765.0,41763.0,0.05290112]
[1641897256149,0.375383,41764.0,41763.0,0.05290112]
[1641897256350,0.423183,41764.0,41763.0,0.011]
[1641897256750,0.423183,41764.0,41761.0,0.08380454]
[1641897257050,0.423183,41764.0,41762.0,0.04190217]
[1641897257051,0.0478,41764.0,41762.0,0.04190217]
[1641897257652,0.31384013,41763.0,41762.0,0.09190217]
[1641897258096,0.31384013,41763.0,41762.0,0.05]
[1641897258298,0.73702313,41763.0,41762.0,0.05]
[1641897258496,0.73702313,41763.0,41761.0,0.023]
[1641897258696,1.044236,41762.0,41758.0,0.00038014]
[1641897258898,0.05501381,41761.0,41758.0,0.00038014]
[1641897259096,0.45261286,41759.0,41755.0,0.0419124]
[1641897259297,0.32617668,41756.0,41755.0,0.0419124]
[1641897259496,0.37397668,41756.0,41755.0,0.0419124]
[1641897260900,0.0478,41756.0,41755.0,0.0419124]
[1641897261296,0.0478,41756.0,41755.0,0.48979023]
[1641897261497,0.0478,41756.0,41755.0,0.55179023]
[1641897261948,0.0478,41756.0,41755.0,0.92717323]
[1641897262148,0.0478,41756.0,41755.0,0.4792954]
[1641897262752,0.0478,41756.0,41755.0,0.4172954]
[1641897262950,0.0478,41756.0,41755.0,0.0419124]
[1641897263647,0.0478,41756.0,41755.0,0.1029124]
[1641897264749,0.30304809,41760.0,41755.0,0.0419124]
[1641897265602,0.30304809,41760.0,41755.0,0.0969124]
[1641897266607,0.30304809,41760.0,41755.0,0.04229259]
[1641897267404,0.30304809,41760.0,41755.0,0.0969124]
[1641897267605,0.30304809,41760.0,41755.0,0.09729259]
[1641897268706,0.30304809,41760.0,41755.0,0.0419124]
[1641897268906,0.30304809,41760.0,41755.0,0.04229259]
[1641897269351,0.30304809,41760.0,41756.0,0.5]
[1641897269546,0.30304809,41760.0,41756.0,0.55]
[1641897270246,0.00721381,41761.0,41756.0,0.55038019]
[1641897271047,0.00721381,41761.0,41756.0,0.55]
[1641897271253,0.00721381,41761.0,41758.0,0.08380954]
[1641897271448,0.55747691,41767.0,41758.0,0.08380954]
[1641897271449,0.00085706,41767.0,41758.0,0.08380954]
[1641897271649,0.00085706,41767.0,41758.0,0.13501859]
[1641897271951,0.00085706,41767.0,41759.0,0.5]
[1641897272148,0.00085706,41767.0,41764.0,0.46001157]
[1641897272352,0.32137687,41769.0,41762.0,0.12569545]
[1641897272650,0.00085712,41767.0,41762.0,0.08379774]
[1641897273097,0.00085712,41767.0,41762.0,0.13379774]
[1641897273499,0.00085712,41767.0,41764.0,0.04189813]
[1641897273500,0.006,41767.0,41764.0,0.04189813]
[1641897273698,0.00685715,41767.0,41764.0,0.04189813]
[1641897273900,0.00685715,41767.0,41765.0,0.5]
[1641897274199,0.00685715,41767.0,41765.0,0.55]
[1641897274601,0.006,41767.0,41765.0,0.55]
[1641897274900,0.32086495,41768.0,41765.0,0.55]
[1641897275399,0.33686495,41768.0,41765.0,0.559]
[1641897275905,0.24961058,41767.0,41765.0,0.559]
[1641897276854,0.24961058,41767.0,41765.0,0.55]
[1641897277149,0.3200078,41768.0,41765.0,0.55]
[1641897277350,0.32086495,41768.0,41765.0,0.55]
[1641897277549,0.32086495,41768.0,41765.0,0.577]
[1641897277949,0.31918321,41767.0,41765.0,0.577]
[1641897278149,0.375383,41766.0,41765.0,0.577]
[1641897278349,0.7041205,41766.0,41765.0,0.577]
[1641897278749,0.375383,41766.0,41765.0,0.55]
[1641897279550,0.3200078,41768.0,41765.0,0.619]
[1641897279755,0.375383,41767.0,41765.0,0.619]
[1641897280353,0.32086495,41768.0,41765.0,0.619]
[1641897280600,0.26828662,41766.0,41765.0,0.619]
[1641897280799,0.26828662,41766.0,41765.0,0.55]
[1641897280800,0.094236,41766.0,41765.0,0.55]
[1641897281001,0.32086495,41768.0,41765.0,0.55]
[1641897281204,0.31810715,41767.0,41765.0,0.55]
[1641897281400,0.32086495,41768.0,41765.0,0.55]
[1641897281602,0.32086495,41768.0,41765.0,0.58]
[1641897281803,0.3200078,41768.0,41765.0,0.58]
[1641897282201,0.2546454,41767.0,41765.0,0.58]
[1641897282401,0.3200078,41768.0,41765.0,0.58]
[1641897282602,0.375383,41767.0,41765.0,0.58]
[1641897282900,0.375383,41767.0,41765.0,0.55]
[1641897283501,0.32086495,41768.0,41765.0,0.617]
[1641897283902,0.375383,41767.0,41765.0,0.617]
[1641897284366,0.31648978,41766.0,41765.0,0.617]
[1641897284563,0.41072578,41766.0,41765.0,0.617]
[1641897284762,0.41309166,41766.0,41765.0,0.55]
[1641897285564,0.42109166,41766.0,41765.0,0.598]
[1641897286766,0.41309166,41766.0,41765.0,0.55]
[1641897287366,0.094236,41766.0,41765.0,0.55]
[1641897287668,0.102236,41766.0,41765.0,0.597]
[1641897288498,0.43799167,41766.0,41765.0,0.597]
[1641897289400,0.42999167,41766.0,41765.0,0.55]
[1641897289601,0.43699167,41766.0,41765.0,0.598]
[1641897290001,0.101236,41766.0,41765.0,0.598]
[1641897290201,0.007,41766.0,41765.0,0.598]
[1641897290401,0.007,41766.0,41765.0,0.548]
[1641897290701,0.32086495,41768.0,41765.0,0.5]
[1641897290901,0.375383,41767.0,41765.0,0.5]
[1641897291104,0.32086495,41768.0,41765.0,0.5]
[1641897291300,0.32086495,41768.0,41765.0,0.54189904]
[1641897291505,0.008,41767.0,41765.0,0.549]
[1641897291952,0.008,41767.0,41765.0,0.599]
[1641897292348,0.008,41767.0,41765.0,0.64089943]
[1641897292748,0.3200078,41768.0,41765.0,0.55]
[1641897292948,0.375383,41767.0,41765.0,0.55]
[1641897293149,0.375383,41767.0,41766.0,0.0059727]
[1641897293549,0.375383,41767.0,41765.0,0.5869727]
[1641897293754,0.375383,41767.0,41765.0,0.561]
[1641897294259,0.375383,41766.0,41765.0,0.561]
[1641897294851,0.375383,41766.0,41765.0,0.5]
[1641897295603,0.378383,41766.0,41765.0,0.609]
[1641897296705,0.378383,41766.0,41765.0,0.55]
[1641897296909,0.375383,41766.0,41765.0,0.5]
[1641897297107,0.375383,41766.0,41765.0,0.55]
[1641897297607,0.378383,41766.0,41765.0,0.609]
[1641897297906,0.378383,41766.0,41765.0,0.551]
[1641897298811,0.375383,41766.0,41765.0,0.492]
[1641897299009,0.375383,41766.0,41765.0,0.542]
[1641897299458,0.375383,41766.0,41765.0,0.598]
[1641897299655,0.378383,41766.0,41765.0,0.548]
[1641897300353,0.378383,41766.0,41752.0,0.29502069]
[1641897300354,0.378383,41766.0,41754.0,0.119714]
[1641897300554,0.003,41766.0,41757.0,0.10162584]
[1641897300954,0.28760662,41767.0,41762.0,0.08379663]
[1641897301155,0.375383,41766.0,41762.0,0.08379663]
[1641897301555,0.2912,41769.0,41763.0,0.34520857]
[1641897301754,0.375383,41768.0,41763.0,0.34520857]
[1641897302254,0.00121858,41771.0,41764.0,0.04189957]
[1641897302456,0.00121858,41771.0,41763.0,0.39520857]
[1641897302754,0.68598361,41775.0,41763.0,0.05]
[1641897302954,0.375383,41774.0,41762.0,0.37379663]
[1641897303200,0.375383,41774.0,41762.0,0.29]
[1641897303400,0.31439389,41773.0,41762.0,0.29]
[1641897303601,0.34227683,41772.0,41762.0,0.29]
[1641897303802,0.34227683,41772.0,41764.0,0.45162456]
[1641897304002,0.34227683,41772.0,41767.0,0.041897]
[1641897304201,0.375383,41771.0,41767.0,0.041897]
[1641897305003,0.37624013,41771.0,41767.0,0.041897]
[1641897305604,0.39524013,41771.0,41764.0,0.58541632]
[1641897305803,0.019,41771.0,41764.0,0.58541632]
[1641897306205,0.01985713,41771.0,41764.0,0.58541632]
[1641897306706,0.00085713,41771.0,41767.0,0.04189628]
[1641897306960,0.00085713,41771.0,41770.0,0.00120504]
[1641897307263,0.3657422,41782.0,41772.0,0.10096573]
[1641897307454,0.3657422,41782.0,41778.0,0.02033616]
[1641897307654,0.17442763,41784.0,41778.0,0.12370165]
[1641897307854,0.44963732,41785.0,41778.0,0.17370165]
[1641897308154,0.44963732,41785.0,41778.0,0.13181616]
[1641897308353,0.27431294,41785.0,41778.0,0.13181616]
[1641897308554,0.00085704,41784.0,41778.0,0.13181616]
[1641897308753,0.00085704,41784.0,41778.0,0.11270616]
[1641897309555,0.022,41784.0,41778.0,0.11970616]
[1641897309760,0.00085704,41783.0,41778.0,0.11970616]
[1641897310356,0.00085704,41783.0,41778.0,0.35970616]
[1641897310607,0.25255601,41783.0,41778.0,0.35970616]
[1641897310808,0.60606883,41787.0,41780.0,0.04188366]
[1641897311011,0.00085705,41783.0,41780.0,0.04188366]
[1641897311609,0.00085705,41783.0,41780.0,0.05988366]
[1641897312007,0.30195349,41786.0,41780.0,0.05988366]
[1641897312208,0.00085704,41784.0,41780.0,0.05988366]
[1641897312607,0.00085704,41784.0,41780.0,0.018]
[1641897312809,0.375383,41783.0,41778.0,0.29]
[1641897313710,0.005,41783.0,41778.0,0.321]
[1641897314111,0.005,41783.0,41780.0,0.15]
[1641897314356,0.005,41783.0,41780.0,0.22414]
[1641897314553,0.00585705,41783.0,41780.0,0.12414]
[1641897314751,0.00585705,41783.0,41782.0,0.15]
[1641897314954,0.00585705,41783.0,41780.0,0.12414]
[1641897314955,0.00085705,41783.0,41780.0,0.12414]
[1641897315152,0.00085705,41783.0,41782.0,0.05]
[1641897315451,0.3049,41790.0,41780.0,0.54543692]
[1641897315652,0.007,41783.0,41780.0,0.55543692]
[1641897315851,0.007,41783.0,41782.0,0.15]
[1641897316053,0.007,41783.0,41782.0,0.96789914]
[1641897316252,0.007,41783.0,41782.0,0.96919322]
[1641897316852,0.00085703,41785.0,41782.0,0.96919322]
[1641897317053,0.00085703,41785.0,41783.0,0.435206]
[1641897317459,0.00085703,41785.0,41784.0,0.36684526]
[1641897317655,0.00085703,41785.0,41784.0,0.74222826]
[1641897317855,1.70998249,41795.0,41784.0,0.79222826]
[1641897318101,0.00342757,41793.0,41787.0,0.04187465]
[1641897318301,0.375383,41792.0,41784.0,0.05]
[1641897318501,0.36543837,41791.0,41783.0,0.045]
[1641897318903,0.059825,41792.0,41782.0,0.00129408]
[1641897319103,0.059825,41792.0,41784.0,0.37106825]
[1641897319305,0.000857,41789.0,41782.0,0.38636147]
[1641897319503,0.000857,41789.0,41782.0,0.43636147]
[1641897319504,0.29156429,41788.0,41782.0,0.43636147]
[1641897319704,0.29156429,41788.0,41784.0,0.04]
[1641897320504,0.00085701,41788.0,41785.0,0.36664462]
[1641897321107,0.00085701,41788.0,41786.0,0.375383]
[1641897321307,0.00085701,41788.0,41786.0,0.425383]
[1641897321507,0.29581936,41793.0,41786.0,0.425383]
[1641897321709,0.000857,41789.0,41786.0,0.076]
[1641897322755,0.35564336,41793.0,41786.0,0.076]
[1641897322954,0.000857,41790.0,41786.0,0.05]
[1641897323153,0.000857,41790.0,41787.0,0.03589274]
[1641897323554,0.004857,41790.0,41787.0,0.03589274]
[1641897323954,0.004,41790.0,41787.0,0.03589274]
[1641897324153,0.004,41790.0,41787.0,0.36728887]
[1641897324553,0.004,41790.0,41787.0,0.05125305]
[1641897324956,0.06067999,41791.0,41787.0,0.00125305]
[1641897325154,0.059823,41791.0,41787.0,0.00125305]
[1641897325458,0.31629686,41791.0,41787.0,0.00125305]
[1641897325705,0.31929686,41791.0,41787.0,0.01725305]
[1641897325905,0.06367999,41791.0,41787.0,0.01725305]
[1641897326106,0.00385699,41791.0,41787.0,0.05314313]
[1641897326306,0.003,41791.0,41787.0,0.4157804]
[1641897326509,0.00385699,41791.0,41787.0,0.4157804]
[1641897326706,0.00385699,41791.0,41787.0,0.41582874]
[1641897326906,0.00385699,41791.0,41788.0,0.375383]
[1641897326907,0.00085699,41791.0,41788.0,0.375383]
[1641897327109,0.00085699,41791.0,41788.0,0.05]
[1641897327307,0.00085699,41791.0,41789.0,0.44893475]
[1641897327508,0.36936552,41795.0,41788.0,0.05]
[1641897327711,0.00085699,41792.0,41788.0,0.066]
[1641897328709,0.30954852,41795.0,41788.0,0.066]
[1641897328910,0.00085698,41792.0,41788.0,0.05]
[1641897329108,0.06067798,41792.0,41788.0,0.05]
[1641897329552,0.06167798,41792.0,41788.0,0.069]
[1641897329955,0.001,41792.0,41788.0,0.069]
[1641897330154,0.00185698,41792.0,41788.0,0.069]
[1641897330955,0.00185698,41792.0,41788.0,0.05]
[1641897330956,0.00085698,41792.0,41788.0,0.05]
[1641897331256,0.00085698,41792.0,41788.0,0.24]
[1641897331455,0.00085698,41792.0,41788.0,0.29]
[1641897331656,0.06067798,41792.0,41788.0,0.258]
[1641897331857,0.375383,41791.0,41788.0,0.258]
[1641897332657,0.33246473,41790.0,41788.0,0.258]
[1641897332957,0.094236,41789.0,41788.0,0.2512]
[1641897333208,0.42016259,41789.0,41788.0,0.2512]
[1641897333412,0.42016259,41789.0,41788.0,0.2332]
[1641897333610,0.42616259,41789.0,41788.0,0.2532]
[1641897334813,0.47616259,41789.0,41788.0,0.2532]
[1641897335615,0.47916259,41789.0,41788.0,0.2452]
[1641897336022,0.47916259,41789.0,41777.0,0.65]
[1641897336023,0.6,41788.0,41777.0,0.65]
[1641897336218,0.059839,41785.0,41777.0,0.15]
[1641897336517,0.0478,41784.0,41774.0,0.8657422]
[1641897336715,0.60606883,41787.0,41774.0,0.8657422]
[1641897336716,0.0478,41783.0,41774.0,0.8657422]
[1641897336956,0.24283677,41781.0,41774.0,0.94984537]
[1641897337156,0.0478,41780.0,41774.0,0.49984537]
[1641897337554,0.0478,41780.0,41775.0,0.03590097]
[1641897338357,0.0478,41780.0,41778.0,0.00123158]
[1641897338561,0.04865707,41780.0,41779.0,0.825383]
[1641897338756,0.04865707,41780.0,41779.0,0.875383]
[1641897338957,0.04865707,41780.0,41779.0,0.425383]
[1641897339156,0.00085707,41780.0,41779.0,0.425383]
[1641897339555,0.40310815,41785.0,41779.0,0.425383]
[1641897339755,0.00085705,41782.0,41781.0,0.03589537]
[1641897339958,0.00085705,41782.0,41781.0,0.45921927]
[1641897340156,0.00085705,41782.0,41781.0,0.03589537]
[1641897340807,0.059828,41785.0,41781.0,0.03589537]
[1641897341008,0.00085704,41784.0,41781.0,0.03589537]
[1641897341807,0.00085704,41784.0,41781.0,0.27589537]
[1641897342008,0.059828,41785.0,41781.0,0.29]
[1641897342208,0.06068503,41785.0,41781.0,0.29]
[1641897343212,0.059828,41785.0,41781.0,0.29]
[1641897343411,0.06068503,41785.0,41781.0,0.29]
[1641897345556,0.059828,41785.0,41781.0,0.29]
[1641897345756,0.00085703,41785.0,41781.0,0.29]
[1641897346158,0.00085703,41785.0,41782.0,0.36527724]
[1641897346363,0.00085703,41785.0,41784.0,1.0]
[1641897346557,0.00085703,41785.0,41784.0,1.40439053]
[1641897346756,0.3015,41794.0,41784.0,1.82977353]
[1641897346957,0.00085702,41787.0,41784.0,1.45439053]
[1641897347157,0.00085702,41787.0,41786.0,0.7765835]
[1641897347357,0.00085702,41787.0,41786.0,1.74936223]
[1641897347657,0.00085702,41787.0,41786.0,1.40917723]
[1641897347857,0.61081109,41794.0,41786.0,1.40917723]
[1641897348104,0.00085701,41789.0,41786.0,1.03379423]
[1641897348305,0.00085701,41789.0,41787.0,0.375383]
[1641897349107,0.25931109,41794.0,41788.0,1.016525]
[1641897349306,0.000857,41790.0,41789.0,0.11962]
[1641897349506,0.000857,41790.0,41789.0,0.91919408]
[1641897349706,0.000857,41790.0,41789.0,0.85938508]
[1641897349906,0.000857,41790.0,41789.0,0.79957408]
[1641897350312,0.014,41794.0,41789.0,0.375383]
[1641897350511,0.014,41794.0,41786.0,0.6265835]
[1641897350512,0.119624,41790.0,41786.0,0.6265835]
[1641897350707,0.119624,41790.0,41786.0,0.15]
[1641897350908,0.05,41789.0,41786.0,0.15]
[1641897351513,0.05,41789.0,41787.0,0.059814]
[1641897352156,0.109811,41789.0,41787.0,0.059814]
[1641897355260,0.109811,41789.0,41786.0,0.54457781]
[1641897356004,0.109811,41789.0,41787.0,0.059814]
[1641897356206,0.109811,41789.0,41784.0,0.119624]
[1641897357006,0.109811,41789.0,41785.0,0.36397179]
[1641897357206,0.109811,41789.0,41787.0,0.43055654]
[1641897358708,0.109811,41789.0,41787.0,0.58055654]
[1641897359112,0.059811,41789.0,41787.0,0.58055654]
[1641897359364,0.059811,41789.0,41788.0,0.375355]
[1641897362264,0.059811,41789.0,41787.0,0.58055654]
[1641897362965,0.059811,41789.0,41788.0,0.375355]
[1641897363206,0.059811,41789.0,41787.0,0.58055654]
[1641897364614,0.059811,41789.0,41788.0,0.375355]
[1641897365209,0.120481,41790.0,41788.0,0.375355]
[1641897365409,0.120481,41790.0,41787.0,0.58055654]
[1641897365910,0.119624,41790.0,41787.0,0.58055654]
[1641897366110,0.119624,41790.0,41786.0,0.10761]
[1641897366311,0.119624,41790.0,41788.0,0.15]
[1641897367658,0.119624,41790.0,41788.0,0.269612]
[1641897369161,0.118624,41790.0,41788.0,0.269612]
[1641897369568,0.059811,41791.0,41788.0,0.269612]
[1641897369760,0.06066799,41791.0,41788.0,0.269612]
[1641897370710,0.059811,41791.0,41788.0,0.269612]
[1641897371008,0.119615,41790.0,41788.0,0.269612]
[1641897372114,0.77112545,41789.0,41788.0,0.15]
[1641897372311,1.13835993,41789.0,41788.0,0.15]
[1641897372509,1.18835993,41789.0,41788.0,0.15]
[1641897372910,1.18835993,41789.0,41781.0,0.24]
[1641897372911,0.73835993,41789.0,41781.0,0.24]
[1641897373110,0.059829,41785.0,41781.0,0.24]
[1641897374212,0.31636051,41783.0,41781.0,0.24]
[1641897374462,0.36636051,41783.0,41781.0,0.24]
[1641897375461,0.05,41783.0,41781.0,0.24]
[1641897377865,0.32442528,41782.0,41781.0,0.24]
[1641897378109,0.69978028,41782.0,41781.0,0.24]
[1641897378308,0.69978028,41782.0,41771.0,0.419261]
[1641897378509,0.05984,41777.0,41771.0,0.119661]
[1641897378709,0.31037304,41776.0,41773.0,0.46674501]
[1641897378909,0.05984,41777.0,41773.0,0.46674501]
[1641897379109,0.05984,41777.0,41774.0,0.059834]
[1641897379310,0.06069709,41777.0,41774.0,0.059834]
[1641897380512,0.05984,41777.0,41776.0,1.92553245]
[1641897380712,0.05984,41777.0,41776.0,2.30088745]
[1641897381510,0.05984,41777.0,41776.0,0.375355]
[1641897381711,0.05984,41777.0,41775.0,0.119644]
[1641897384459,0.05984,41777.0,41774.0,0.359643]
[1641897387212,0.40043102,41776.0,41774.0,0.24]
[1641897387812,0.06069708,41777.0,41774.0,0.24]